Cogmind - Beta 16.1 @@@ ROGUE MODE // 2026.04.08 @ 14:48:58 Player: Maelyn Result: Destroyed by G-47 Trooper with Particle Gun Performance ------------- Evolutions (2) 1000 Regions Visited (3) 600 Robots Destroyed (12) 60 Value Destroyed (450) 450 Prototype IDs (1) 20 Alien Tech Used (0) 0 Bonus (0) 0 TOTAL SCORE: 2130 Bonus ------- None Cogmind --------- Core Integrity 0/550 Matter 247/300 Energy 100/100 System Corruption 0% Temperature Cool (9) Movement Core (200) Ox3 Location -8/Materials Parts ------- > --- POWER (1) -------- (None) > --- PROPULSION (3) --- (None) > --- UTILITY (5) ------ Medium Storage Unit Visual Processing Unit > --- WEAPON (2) ------- (None) > --- INVENTORY (10) --- Light Ion Engine Light Ion Engine Light Treads Armored Treads Armored Treads Shock Rifle Peak State ------------ > --- POWER ------------ Nuclear Core > --- PROPULSION ------- Light Treads Light Treads Armored Treads > --- UTILITY ---------- Medium Storage Unit Large Battery Visual Processing Unit Propulsion Shielding Light Armor Plating > --- WEAPON ----------- High-powered Shotgun Barrage Gun > --- INVENTORY -------- Light Ion Engine Light Ion Engine Nuclear Core Light Treads Aluminum Leg Aluminum Leg Light Assault Rifle Grenade Launcher [Rating: 21] Favorites ----------- Power Light Ion Engine Engine Light Ion Engine Power Core Nuclear Core Propulsion Light Treads Treads Light Treads Leg Aluminum Leg Utility Medium Storage Unit Storage Medium Storage Unit Processor Visual Processing Unit Protection Propulsion Shielding Weapon Light Assault Rifle Ballistic Gun Light Assault Rifle Launcher Grenade Launcher Build | -11 -10 -10 -8 ------- Run | Yrd Mat Sub Mat Slots Evolved 4 | . . . 4 Power . | . . . . Propulsion 1 | . . . 1 Utility 3 | . . . 3 Weapon . | . . . . Parts Attached 23 | 6 2 1 14 Power 3 | 1 . . 2 Engine 1 | 1 . . . Core 2 | . . . 2 Reactor . | . . . . Propulsion 7 | 2 . . 5 Treads 5 | 2 . . 3 Leg 2 | . . . 2 Wheel . | . . . . Hover . | . . . . Flight . | . . . . Utility 6 | 1 2 . 3 Device . | . . . . Storage 3 | 1 2 . . Processor 1 | . . . 1 Hackware . | . . . . Protection 2 | . . . 2 Artifact . | . . . . Weapon 7 | 2 . 1 4 Energy Gun . | . . . . Energy Cannon . | . . . . Ballistic Gun 6 | 2 . 1 3 Ballistic Cannon . | . . . . Launcher 1 | . . . 1 Special Weapon . | . . . . Impact Weapon . | . . . . Slashing Weapon . | . . . . Piercing Weapon . | . . . . Special Melee Weapon . | . . . . Unidentified Prototypes 1 | . . . 1 Parts Lost 15 | . . . 15 Power 2 | . . . 2 Propulsion 5 | . . . 5 Utility 3 | . . . 3 Weapon 5 | . . . 5 Highest Loss Streak 10 | . . . 10 To Critical Strikes . | . . . . Average Backups 8 | 4 8 10 7 Power 2 | 1 1 2 2 Propulsion 3 | 2 4 4 2 Utility . | . . 2 . Weapon 1 | 1 1 2 2 Tool/Special . | . . . . Unused Backups 5 | . . 1 4 Power 2 | . . . 2 Propulsion 3 | . . 1 2 Utility . | . . . . Weapon . | . . . . Tool/Special . | . . . . Average Slot Usage (%) 87 | . 94 100 78 Engine 7 | . 14 14 1 Core 2 | . . . 4 Treads 23 | . 28 28 20 Storage 21 | . 22 28 17 Processor 4 | . . . 9 Protection 3 | . . . 7 Ballistic Gun 21 | . 28 28 16 Peak Build Rating 21 | 6 8 10 21 Average Rating 11 | 4 6 8 15 On Entrance 6 | . 6 8 10 Avg Prop Armor Cover (%) 10 | . . . 10 Naked Turns . | . . . . Heaviest Build 30 | 11 19 20 30 Greatest Support 60 | 40 40 40 60 Greatest Overweight (x) 7 | 1 . . 7 Average Overweight (x) . | . . . . Largest Inventory Capacity 10 | 8 10 10 10 Average Capacity 9 | 7 9 10 10 Most Carried 10 | 8 10 10 10 Average Carried 8 | 5 8 10 7 Final Capacity 10 | 8 10 10 10 Final Carried 10 | 6 10 10 6 Class Distribution -------------------- 100% | Mutant Dominant Class ---------------- Mutant | -10/Materials Mutant | -10/Subcaves Mutant | -8/Materials Resources | -11 -10 -10 -8 ----------- Run | Yrd Mat Sub Mat Matter Collected 604 | 213 50 75 266 Remotely . | . . . . Salvage Created 523 | . 110 . 413 Parts 20 | . 4 . 16 Haulers Intercepted 1 | . 1 . . Recyclers Shooed . | . . . . Parts Field Recycled . | . . . . Retrieved Matter . | . . . . Parts Self-Destructed . | . . . . Prevented . | . . . . Parts Restored . | . . . . Kills | -11 -10 -10 -8 ------- Run | Yrd Mat Sub Mat Combat Hostiles Destroyed 9 | . 1 . 8 Guns 9 | . 1 . 8 Classes Destroyed 4 | . 3 . 1 Hauler 1 | . 1 . . Watcher 2 | . 1 . 1 Grunt 6 | . 1 . 5 Sentry 3 | . . . 3 Best Kill Streak 4 | . 1 . 4 Combat Bots Only 4 | . 1 . 4 Max Kills in Single Turn 1 | . 1 . 1 Gunslinging . | . . . . Exploded . | . . . . Melee . | . . . . Uniques/NPCs Destroyed . | . . . . Combat | -11 -10 -10 -8 -------- Run | Yrd Mat Sub Mat Hostile Shots Fired 264 | . 3 12 249 Missed 83 | . . 4 79 Hits 181 | . 3 8 170 Melee 2 | . . . 2 Projectile 179 | . 3 8 168 Critical Strikes 8 | . . 2 6 Damage Taken 2456 | . 33 167 2256 Core 554 | . . . 554 Absorbed by Shields . | . . . . Redirected to Shielding 51 | . . . 51 Core Remaining (%) 100 | 100 . 100 . Volleys Fired 48 | . 11 1 36 Largest 2 | . 2 2 2 Hottest 53 | . 40 40 53 Shots Fired 96 | . 22 2 72 Gun 96 | . 22 2 72 Cannon . | . . . . Launcher . | . . . . Special . | . . . . Kinetic 96 | . 22 2 72 Thermal . | . . . . Explosive . | . . . . Electromagnetic . | . . . . Robot Hit Streak 11 | . 5 . 11 Robot Miss Streak 4 | . 4 . 4 Penetration Max . | . . . . Secondary Targets 2 | . . . 2 Max Gunslinging Chain 1 | . . . 1 Shots Hit Robots 60 | . 13 . 47 Core Hits 31 | . 6 . 25 Critical Kills . | . . . . Critical Parts Destroyed . | . . . . Critical Strikes . | . . . . Melee Attacks . | . . . . Impact . | . . . . Slashing . | . . . . Piercing . | . . . . Sneak Attacks . | . . . . Combat Hostiles . | . . . . Follow-up Attacks . | . . . . Damage Inflicted 939 | . 120 . 819 Guns 939 | . 120 . 819 Cannons . | . . . . Explosions . | . . . . Melee . | . . . . Ramming . | . . . . Kinetic 939 | . 120 . 819 Thermal . | . . . . Explosive . | . . . . Electromagnetic . | . . . . Impact . | . . . . Slashing . | . . . . Piercing . | . . . . Highest Corruption . | . . . . Average Corruption . | . . . . Corruption Purged . | . . . . Corruption Blocked . | . . . . Overload Shots . | . . . . Overflow Damage . | . . . . Projectiles . | . . . . Explosions . | . . . . Melee . | . . . . Knockbacks . | . . . . Impact . | . . . . Kinetic . | . . . . Secondary . | . . . . Self-Inflicted Damage . | . . . . Shots . | . . . . Rammed . | . . . . Targets Rammed . | . . . . Kicked . | . . . . Crushed . | . . . . Highest Temperature 145 | . 6 . 145 Average Temperature 82 | . 6 . 85 Received Heat Transfer 1050 | . 18 24 1008 Siege Activations . | . . . . Martial Activations . | . . . . Shielding Activations . | . . . . Robots Disrupted . | . . . . Combat Hostiles . | . . . . Robots Corrupted . | . . . . Combat Hostiles . | . . . . Parts Fried . | . . . . Impact Corruptions . | . . . . Robots Melted . | . . . . Combat Hostiles . | . . . . Parts Melted . | . . . . Heat Transferred . | . . . . Parts Sabotaged . | . . . . Parts Stolen . | . . . . Parts Stripped . | . . . . Power Chain Reactions . | . . . . Alert | -11 -10 -10 -8 ------- Run | Yrd Mat Sub Mat Maximum Alert Level . | . . . . Low Security (%) 100 | 100 100 . 100 Level 1 . | . . . . Level 2 . | . . . . Level 3 . | . . . . Level 4 . | . . . . Level 5 . | . . . . High Security . | . . . . Max Security . | . . . . Peak Influence 85 | . 20 . 85 Initial . | . . . . Average 15 | . 1 . 23 Influence Increases 272 | . 34 . 238 Destroy 0b10 Robot/C 180 | . 20 . 160 Destroy 0b10 Robot/NC 15 | . 10 . 5 Destroy Leader 46 | . 4 . 42 Destroy Structure 1 | . . . 1 Lose Combat Pursuer 30 | . . . 30 Influence Decreases 257 | . 34 . 223 Time Decay 167 | . 34 . 133 Lost Part 90 | . . . 90 Squads Dispatched 3 | . . . 3 Investigation . | . . . . Extermination . | . . . . Reinforcement . | . . . . Assault . | . . . . Garrison 3 | . . . 3 Intercept . | . . . . Searches Triggered . | . . . . Construction Impeded . | . . . . Haulers Reinforced . | . . . . Active Scanning Responses . | . . . . Cargo Convoy Interrupts . | . . . . Stealth | -11 -10 -10 -8 --------- Run | Yrd Mat Sub Mat Distress Signals 3 | . . . 3 Communications Jammed . | . . . . Distress Signals . | . . . . Times Spotted 26 | . 3 2 21 Peak Tracking Total 10 | . 1 2 10 Tactical Retreats 2 | . . . 2 Traps | -11 -10 -10 -8 ------- Run | Yrd Mat Sub Mat Traps Triggered . | . . . . Indirectly . | . . . . Trap Hack Attempts . | . . . . Triggered . | . . . . Disarmed . | . . . . Reprogrammed . | . . . . Reused . | . . . . Traps Extracted . | . . . . Installed . | . . . . Triggered . | . . . . Machines | -11 -10 -10 -8 ---------- Run | Yrd Mat Sub Mat Machines Disabled . | . . . . Max in Single Turn . | . . . . Machines Repaired . | . . . . Machines Dismantled . | . . . . Machines Sabotaged . | . . . . Overloaded Fab Kills . | . . . . Hacking | -11 -10 -10 -8 --------- Run | Yrd Mat Sub Mat Machines Accessed . | . . . . Terminals . | . . . . Fabricators . | . . . . Repair Stations . | . . . . Recycling Units . | . . . . Scanalyzers . | . . . . Garrison Access . | . . . . Total Hacks . | . . . . Successful . | . . . . Failed . | . . . . Catastrophic . | . . . . Database Lockouts . | . . . . Manual . | . . . . Terminals . | . . . . Fabricators . | . . . . Repair Stations . | . . . . Recycling Units . | . . . . Scanalyzers . | . . . . Garrison Access . | . . . . Terminal Hacks . | . . . . Fabricator Hacks . | . . . . Repair Station Hacks . | . . . . Recycling Unit Hacks . | . . . . Scanalyzer . | . . . . Garrison Access Hacks . | . . . . Unauthorized Hacks . | . . . . Terminals . | . . . . Fabricators . | . . . . Repair Stations . | . . . . Recycling Units . | . . . . Scanalyzers . | . . . . Garrison Access . | . . . . Data Cores Recovered . | . . . . Used . | . . . . Hacking Detections . | . . . . Full Trace Events . | . . . . Feedback Events . | . . . . Feedback Blocked . | . . . . Robot Schematics Acquired . | . . . . Robots Built . | . . . . Authchips . | . . . . Time . | . . . . Total Robot Build Rating . | . . . . Part Schematics Acquired . | . . . . Parts Built . | . . . . Authchips . | . . . . Time . | . . . . Total Part Build Rating . | . . . . Part Studies Acquired . | . . . . Parts Repaired . | . . . . Time . | . . . . Parts Recycled . | . . . . Recycled Matter . | . . . . Retrieved Matter . | . . . . Retrieved Components . | . . . . Parts Scanalyzed . | . . . . Part Schematics Acquired . | . . . . Parts Damaged . | . . . . Bothacking | -11 -10 -10 -8 ------------ Run | Yrd Mat Sub Mat Used RIF Installer . | . . . . Robots Hacked . | . . . . Non-combat . | . . . . Combat . | . . . . Robot Hacks Applied . | . . . . Relay Couplers Released . | . . . . Fabnet Peak Effective % . | . . . . Robots Rewired . | . . . . Allies Hacked . | . . . . Hacks Repelled . | . . . . Allies | -11 -10 -10 -8 -------- Run | Yrd Mat Sub Mat Total Allies . | . . . . Largest Group . | . . . . Highest-Rated Group . | . . . . Highest-Rated Ally . | . . . . Total Orders . | . . . . Ally Attacks . | . . . . Total Damage . | . . . . Kills . | . . . . Allies Corrupted . | . . . . Allies Melted . | . . . . Intel | -11 -10 -10 -8 ------- Run | Yrd Mat Sub Mat Active Infowar (turns) 593 | . . . 593 Optics 593 | . . . 593 Robot Analysis Total . | . . . . Derelict Logs Recovered 2 | . . 2 . Drone Launches . | . . . . Drone Recoveries . | . . . . Exploration | -11 -10 -10 -8 ------------- Run | Yrd Mat Sub Mat Turns Passed 1157 | 70 242 252 593 Spaces Moved 606 | 45 128 155 278 Core 41 | 19 . . 22 Treads 540 | 26 128 155 231 Legs 25 | . . . 25 Wheels . | . . . . Hover . | . . . . Flight . | . . . . Fastest Speed 50 | 50 160 160 120 Average Speed 160 | 121 160 160 166 Slowest Speed 400 | 160 160 160 400 Overloaded Moves . | . . . . Propulsion Burnouts . | . . . . Robots Hopped . | . . . . Potential Cave-ins . | . . . . Cave-ins Triggered . | . . . . Exploration Rate (%) 21 | 3 22 17 44 Regions Visited 3 Branch Regions 1 Pre-discovered Areas 1 | . . 1 . Known Exits Taken . | . . . . Unknown Exits Taken 3 | 1 1 1 . Scrap Searched 3 | . . 3 . Spaces Dug . | . . . . Terrain Destroyed . | . . . . Melee . | . . . . Projectile . | . . . . AOE . | . . . . Terrain Rammed . | . . . . Walls Destroyed . | . . . . Machines Disabled . | . . . . Actions | -11 -10 -10 -8 --------- Run | Yrd Mat Sub Mat Total 709 | 60 146 159 344 Wait 1 | . . . 1 Move 603 | 44 127 154 278 Hop . | . . . . Pick Up 25 | 10 5 1 9 Fast Attach 4 | 2 1 . 1 Attach 15 | 4 1 . 10 Detach . | . . . . Swap 6 | . . 1 5 Drop 7 | . 1 2 4 Fire 48 | . 11 1 36 Melee . | . . . . Ram . | . . . . Kick . | . . . . Crush . | . . . . Escape Stasis . | . . . . Rewire . | . . . . Trap . | . . . . Miscellaneous . | . . . . Route ------- -11/Scrapyard -10/Materials -10/Subcaves -8/Materials History --------- Turn | Location | Event 21 | -11/Scrapyard | Discovered new exit (range 15) 71 | -11/Scrapyard | Entered Materials 285 | -10/Materials | Discovered new exit (range 15) 313 | -10/Materials | Entered Subcaves 318 | -10/Subcaves | Build established: Mutant 329 | -10/Subcaves | Learned Materials stockpile data 445 | -10/Subcaves | Learned location of Storage (-9) 493 | -10/Subcaves | Discovered new exit (range 15) 545 | -10/Subcaves | Ambushed by Subdwellers from Twisted Machinery 565 | -10/Subcaves | Entered Materials 565 | -8/Materials | Evolved 4 slots: Propulsion x1, Utility x3 869 | -8/Materials | Garrison activated, responded to threat 946 | -8/Materials | Lost 4 parts (1p1n2u) 1058 | -8/Materials | Core integrity fell below 50% 1124 | -8/Materials | Core integrity fell below 20% 1158 | -8/Materials | Destroyed by G-47 Trooper with Particle Gun Last Messages --------------- 01098_ R-06 Scavenger collects Flight Unit. 01098_ Lgt. Assault Rifle destroyed. 01098_ Lgt. Treads destroyed. 01099_ R-06 Scavenger collects Lgt. Ion Engine. 01100_ Aluminum Leg destroyed. 01103_ R-06 Scavenger collects Flight Unit. 01104_ Atomic Centrifuge comes online. 01104_ Enh. Autogun destroyed. 01104_ U-05 Engineer works on Atomic Centrifuge. 01109_ Nuclear Core destroyed. 01110_ Lrg. Battery destroyed. 01110_ Atomic Centrifuge disabled. 01115_ Grenade Launcher destroyed. 01125_ S-10 Pest destroyed. 01126_ Hpw. Shotgun destroyed. 01128_ Barrage Gun destroyed. 01143_ Critical hit (Burn: +37). 01149_ Acquired Shock Rifle. 01154_ Acquired Arm. Treads. Map ----- +----------------------------------------------------+ | ???????????????????????????# # """ """ ?? | | ??????????????????########## + """ ""???? | | ??????????????????# # # ?????? | | ??????????????????# # % # ???????? | | ??????????????????# # % #+#######??? | | ??????????????????# # #### | | ??????????????????# / | | ??????????????????# # " " | | ??????????????????# # ^ "" T | | ??????????????????# # """ " | | ??????????????????# ==[/ | | ??????????????????#######/####### | | ??????????????????[?????#%#?????# "" #### | | ????????????????????????# #?????#^ ###??? | | ???????????????????????## ##????# #????? | | ???????????????????????# ###### #????? | | ??????????????????#+##+# #????? | | ??????????????????# # ###### #????? | | ??????????????#####?## ##????#######+###+#????? | | ??????????????# # #??????????????????????? | | ??????????????# [ /Y #??????????????????????? | | ??????????????# " #g##########????????????????? | | ??????????????# T / # / #????????????????? | | ??????????????# " ?# !*! ##????????????????? | | ??????????????#? ??# !*! #?????????????????? | | ???????????????###???# @! [#?????????????????? | | ?????????????????????###########?????????????????? | | | | | | | | | | | | | | | | | | | | | | | | | | | | | | | | | | | | | | | | | | | | | | | +----------------------------------------------------+ Best States ------------- Heat Dissipation 31 Energy Generation 14 Energy Capacity 440 Matter Stores 300 Matter Capacity 300 Sight Range 18 Terrain Scan Density 10 Armor Coverage 150 Propulsion Shielding 33 Evasion (%) 50 Recoil Reduction 3 Item Schematics ----------------- None Robot Schematics ------------------ None Fabricated ------------ Nothing Repaired ---------- Nothing Studied --------- None Alien Tech Used ----------------- None Achievements -------------- None Challenges ------------ None Game ------ Seed PlatingReinforcedMaul Manual? 0 Play Time 00:12:02 Cumulative 19.4 hours Start 2026.04.08 @ 14:39:29 End 2026.04.08 @ 14:48:58 Sessions 1 Manual Loads 0 Difficulty Rogue Special Mode None Game No. 55 Rogue 55 Adventurer 0 Explorer 0 Win Type - Total 0 Types 0/0/0/0/0/0/0/0/0/0 Lore% 10 Gallery% 20 Achievement% 11 Wizard Run 0 Options --------- Layout 2 ASCII 0 Keyboard 0 Movement Mouse Keybinds 0 Fullscreen 1 Font 24/Crisp Map View 50x44 Zoom Use 0% Tactical HUD 1 Map Filters NONE Filters NONE Steam 1 RUN: ed17d966-3d84-4323-8855-8b5aa7703b81